fUST/lending_fUST_20250811
["ID","MTS","AMOUNT","RATE_DAILY","PERIOD"]
[378605860,1754923850836,-295.42854797,0.00019452,2]
[378605861,1754923850845,-460.0,0.00019452,2]
[378605862,1754923850856,-460.0,0.00019452,2]
[378605863,1754923850865,-460.0,0.00019452,2]
[378605864,1754923850874,-460.0,0.00019452,2]
[378605865,1754923850883,-548.32,0.00019452,2]
[378605866,1754923850893,-460.0,0.00019452,2]
[378605867,1754923850902,-580.86,0.00019452,2]
[378605868,1754923850912,-1087.25,0.00019452,2]
[378605869,1754923850921,-460.0,0.00019452,2]
[378605870,1754923850931,-648.3,0.00019452,2]
[378605871,1754923850940,-460.0,0.00019452,2]
[378605872,1754923850949,-460.0,0.00019452,2]
[378605873,1754923850958,-659.78,0.00019452,2]
[378605874,1754923850967,-460.0,0.00019452,2]
[378605875,1754923850976,-460.0,0.00019452,2]
[378605876,1754923850985,-460.0,0.00019452,2]
[378605877,1754923850994,-460.0,0.00019452,2]
[378605878,1754923851003,-460.0,0.00019452,2]
[378605879,1754923851012,-460.0,0.00019452,2]
[378605880,1754923851021,-460.0,0.00019452,2]
[378605881,1754923851030,-471.41390067,0.00019452,2]
[378605882,1754923851040,-586.24,0.00019452,2]
[378605883,1754923851048,-632.97,0.00019452,2]
[378605884,1754923851058,-581.2765512,0.00019452,2]
[378605885,1754923851067,-460.0,0.00019452,2]
[378605886,1754923851076,-460.0,0.00019452,2]
[378605887,1754923851086,-460.0,0.00019452,2]
[378605888,1754923851095,-1000.0,0.00019452,2]
[378605889,1754923851105,-460.0,0.00019452,2]
[378605890,1754923851114,-460.0,0.00019452,2]
[378605891,1754923851124,-460.0,0.00019452,2]
[378605892,1754923851133,-512.12,0.00019452,2]
[378605893,1754923851143,-460.0,0.00019452,2]
[378605894,1754923851152,-461.4589706,0.00019452,2]
[378605895,1754923851162,-460.0,0.00019452,2]
[378605896,1754923851171,-460.0,0.00019452,2]
[378605897,1754923851181,-1039.92,0.00019452,2]
[378605898,1754923851191,-460.0,0.00019452,2]
[378605899,1754923851200,-460.0,0.00019452,2]
[378605900,1754923851209,-460.0,0.00019452,2]
[378605901,1754923851219,-460.0,0.00019452,2]
[378605902,1754923851229,-811.43,0.00019452,2]
[378605903,1754923851239,-861.66,0.00019452,2]
[378605904,1754923851248,-460.0,0.00019452,2]
[378605905,1754923851258,-460.0,0.00019452,2]
[378605906,1754923851267,-460.0,0.00019452,2]
[378605907,1754923851277,-460.0,0.00019452,2]
[378605908,1754923851286,-779.88,0.00019452,2]
[378605909,1754923851295,-460.0,0.00019452,2]
[378605910,1754923851304,-545.77,0.00019452,2]
[378605911,1754923851314,-460.0,0.00019452,2]
[378605912,1754923851323,-460.0,0.00019452,2]
[378605913,1754923851332,-460.0,0.00019452,2]
[378605914,1754923851342,-630.77,0.00019452,2]
[378605915,1754923851351,-460.0,0.00019452,2]
[378605916,1754923851361,-460.0,0.00019452,2]
[378605917,1754923851371,-460.0,0.00019452,2]
[378605918,1754923851381,-460.0,0.00019452,2]
[378605919,1754923851390,-460.0,0.00019452,2]
[378605920,1754923851400,-460.0,0.00019452,2]
[378605921,1754923851409,-469.7,0.00019452,2]
[378605922,1754923851418,-460.0,0.00019452,2]
[378605923,1754923851427,-460.0,0.00019452,2]
[378605924,1754923851436,-460.0,0.00019452,2]
[378605925,1754923851446,-460.0,0.00019452,2]
[378605926,1754923851455,-460.0,0.00019452,2]
[378605927,1754923851467,-228.35510715,0.00019452,2]
[378605928,1754923851476,-460.0,0.00019452,2]
[378605929,1754923851485,-460.0,0.00019452,2]
[378605930,1754923851495,-460.0,0.00019452,2]
[378605931,1754923851504,-690.08,0.00019452,2]
[378605932,1754923851514,-460.0,0.00019452,2]
[378605933,1754923851523,-589.03,0.00019452,2]
[378605934,1754923851532,-460.0,0.00019452,2]
[378605935,1754923851541,-460.0,0.00019452,2]
[378605936,1754923851550,-1428.35,0.00019452,2]
[378605937,1754923851559,-460.0,0.00019452,2]
[378605938,1754923851568,-460.0,0.00019452,2]
[378605939,1754923851578,-460.0,0.00019452,2]
[378605940,1754923851588,-460.0,0.00019452,2]
[378605941,1754923851598,-487.66,0.00019452,2]
[378605942,1754923851606,-460.0,0.00019452,2]
[378605943,1754923851616,-751.06,0.00019452,2]
[378605944,1754923851625,-1497.51,0.00019452,2]
[378605945,1754923851635,-513.91771714,0.00019452,2]
[378605946,1754923851644,-460.0,0.00019452,2]
[378605947,1754923851655,-460.0,0.00019452,2]
[378605948,1754923851667,-1294.43,0.00019452,2]
[378605949,1754923851676,-460.0,0.00019452,2]
[378605950,1754923851685,-460.0,0.00019452,2]
[378605951,1754923851694,-453.09686162,0.00019452,2]
[378605952,1754923851705,-460.0,0.00019452,2]
[378605953,1754923851715,-460.0,0.00019452,2]
[378605954,1754923851724,-460.0,0.00019452,2]
[378605955,1754923851735,-814.26,0.00019452,2]
[378605956,1754923851746,-201.65488289,0.00019452,2]
[378605957,1754923851755,-460.0,0.00019452,2]
[378605958,1754923851765,-460.0,0.00019452,2]
[378605959,1754923851775,-460.0,0.00019452,2]
[378605960,1754923851784,-460.0,0.00019452,2]
[378605961,1754923851794,-819.72,0.00019452,2]
[378605962,1754923851802,-460.0,0.00019452,2]
[378605963,1754923851812,-628.94,0.00019452,2]
[378605964,1754923851822,-467.5314501,0.00019452,2]
[378605965,1754923851832,-460.0,0.00019452,2]
[378605966,1754923851841,-727.93,0.00019452,2]
[378605967,1754923851851,-460.0,0.00019452,2]
[378605968,1754923851861,-1798.53,0.00019452,2]
[378605969,1754923851870,-660.02,0.00019452,2]
[378605970,1754923851880,-298.73074238,0.00019452,2]
[378605971,1754923851889,-460.0,0.00019452,2]
[378605972,1754923851899,-460.0,0.00019452,2]
[378605973,1754923851908,-349.67782124,0.00019452,2]
[378605974,1754923851918,-460.0,0.00019452,2]
[378605975,1754923851927,-460.0,0.00019452,2]
[378605976,1754923851937,-460.0,0.00019452,2]
[378605977,1754923851947,-460.0,0.00019452,2]
[378605978,1754923851956,-466.99,0.00019452,2]
[378605979,1754923851967,-460.0,0.00019452,2]
[378605980,1754923851976,-460.0,0.00019452,2]
[378605981,1754923851985,-837.14,0.00019452,2]
[378605982,1754923851994,-460.0,0.00019452,2]
[378605983,1754923852004,-281.13136386,0.00019452,2]
[378605984,1754923852013,-460.0,0.00019452,2]
[378605985,1754923852023,-460.0,0.00019452,2]
[378605986,1754923852032,-555.19,0.00019452,2]
[378605987,1754923852042,-460.0,0.00019452,2]
[378605988,1754923852052,-917.39,0.00019452,2]
[378605989,1754923852061,-460.0,0.00019452,2]
[378605990,1754923852071,-460.0,0.00019452,2]
[378605991,1754923852080,-460.0,0.00019452,2]
[378605992,1754923852090,-1858.68,0.00019452,2]
[378605993,1754923852099,-460.0,0.00019452,2]
[378605994,1754923852108,-4453.58,0.00019452,2]
[378605995,1754923852118,-704.95,0.00019452,2]
[378605996,1754923852128,-460.0,0.00019452,2]
[378605997,1754923852137,-546.96241014,0.00019452,2]
[378605998,1754923852147,-460.0,0.00019452,2]
[378605999,1754923852157,-2704.43,0.00019452,2]
[378606000,1754923852166,-460.0,0.00019452,2]
[378606001,1754923852176,-755.44,0.00019452,2]
[378606002,1754923852185,-460.0,0.00019452,2]
[378606003,1754923852195,-460.0,0.00019452,2]
[378606004,1754923852205,-460.0,0.00019452,2]
[378606005,1754923852216,-460.0,0.00019452,2]
[378606006,1754923852226,-950.15,0.00019452,2]
[378606007,1754923852235,-460.0,0.00019452,2]
[378606008,1754923852245,-569.87475365,0.00019452,2]
[378606009,1754923852255,-1095.74,0.00019452,2]
[378606010,1754923852264,-460.0,0.00019452,2]
[378606011,1754923852274,-643.11,0.00019452,2]
[378606012,1754923852283,-460.0,0.00019452,2]
[378606013,1754923852292,-460.0,0.00019452,2]
[378606014,1754923852302,-460.0,0.00019452,2]
[378606015,1754923852311,-1217.0,0.00019452,2]
[378606016,1754923852321,-868.39,0.00019452,2]
[378606017,1754923852330,-460.0,0.00019452,2]
[378606018,1754923852340,-460.0,0.00019452,2]
[378606019,1754923852349,-460.0,0.00019452,2]
[378606020,1754923852358,-460.0,0.00019452,2]
[378606021,1754923852368,-500.0,0.00019452,2]
[378606022,1754923852378,-460.0,0.00019452,2]
[378606023,1754923852387,-460.0,0.00019452,2]
[378606024,1754923852396,-460.0,0.00019452,2]
[378606025,1754923852405,-460.0,0.00019452,2]
[378606026,1754923852414,-460.0,0.00019452,2]
[378606027,1754923852423,-460.0,0.00019452,2]
[378606028,1754923852432,-460.0,0.00019452,2]
[378606029,1754923852441,-461.92465951,0.00019452,2]
[378606030,1754923852450,-460.0,0.00019452,2]
[378606031,1754923852461,-460.0,0.00019452,2]
[378606032,1754923852471,-460.0,0.00019452,2]
[378606033,1754923852480,-460.0,0.00019452,2]
[378606034,1754923852490,-460.0,0.00019452,2]
[378606035,1754923852499,-460.0,0.00019452,2]
[378606036,1754923852509,-460.0,0.00019452,2]
[378606037,1754923852518,-460.0,0.00019452,2]
[378606038,1754923852528,-10995.11,0.00019452,2]
[378606039,1754923852537,-460.0,0.00019452,2]
[378606040,1754923852546,-460.0,0.00019452,2]
[378606041,1754923852556,-460.0,0.00019452,2]
[378606042,1754923852565,-1037.02,0.00019452,2]
[378606043,1754923852574,-460.0,0.00019452,2]
[378606044,1754923852583,-305.8984454,0.00019452,2]
[378606045,1754923852592,-460.0,0.00019452,2]
[378606046,1754923852601,-460.0,0.00019452,2]
[378606047,1754923852610,-1303.08,0.00019452,2]
[378606048,1754923852620,-460.0,0.00019452,2]
[378606049,1754923852629,-460.0,0.00019452,2]
[378606050,1754923852639,-460.0,0.00019452,2]
[378606051,1754923852648,-564.9,0.00019452,2]
[378606052,1754923852661,-460.0,0.00019452,2]
[378606053,1754923852670,-460.0,0.00019452,2]
[378606054,1754923852680,-460.0,0.00019452,2]
[378606055,1754923852690,-2707.46,0.00019452,2]
[378606056,1754923852701,-460.0,0.00019452,2]
[378606057,1754923852712,-472.71,0.00019452,2]
[378606058,1754923852721,-460.0,0.00019452,2]
[378606059,1754923852731,-460.0,0.00019452,2]
[378606060,1754923852740,-460.0,0.00019452,2]
[378606061,1754923852750,-460.0,0.00019452,2]
[378606062,1754923852759,-460.0,0.00019452,2]
[378606063,1754923852769,-683.18,0.00019452,2]
[378606064,1754923852778,-460.0,0.00019452,2]
[378606065,1754923852788,-460.0,0.00019452,2]
[378606066,1754923852798,-460.0,0.00019452,2]
[378606067,1754923852807,-494.49,0.00019452,2]
[378606068,1754923852818,-460.0,0.00019452,2]
[378606069,1754923852828,-460.0,0.00019452,2]
[378606070,1754923852837,-460.0,0.00019452,2]
[378606071,1754923852847,-460.0,0.00019452,2]
[378606072,1754923852856,-2125.89,0.00019452,2]
[378606073,1754923852865,-460.0,0.00019452,2]
[378606074,1754923852875,-460.0,0.00019452,2]
[378606075,1754923852885,-1420.35,0.00019452,2]
[378606076,1754923852895,-460.0,0.00019452,2]
[378606077,1754923852903,-460.0,0.00019452,2]
[378606078,1754923852913,-460.0,0.00019452,2]
[378606079,1754923852923,-460.0,0.00019452,2]
[378606080,1754923852933,-460.0,0.00019452,2]
[378606081,1754923852943,-460.0,0.00019452,2]
[378606082,1754923852952,-460.0,0.00019452,2]
[378606083,1754923852963,-460.0,0.00019452,2]
[378606084,1754923852972,-460.0,0.00019452,2]
[378606085,1754923852982,-460.0,0.00019452,2]
[378606086,1754923852991,-460.0,0.00019452,2]
[378606087,1754923853001,-460.0,0.00019452,2]
[378606088,1754923853010,-1183.61,0.00019452,2]
[378606089,1754923853020,-460.0,0.00019452,2]
[378606090,1754923853030,-460.0,0.00019452,2]
[378606091,1754923853039,-5101.41,0.00019452,2]
[378606092,1754923853049,-1232.81,0.00019452,2]
[378606093,1754923853058,-460.0,0.00019452,2]
[378606094,1754923853068,-460.0,0.00019452,2]
[378606095,1754923853078,-544.79,0.00019452,2]
[378606096,1754923853087,-1000.04,0.00019452,2]
[378606097,1754923853096,-460.0,0.00019452,2]
[378606098,1754923853106,-460.0,0.00019452,2]
[378606099,1754923853115,-460.0,0.00019452,2]
[378606100,1754923853125,-558.79,0.00019452,2]
[378606101,1754923853135,-460.0,0.00019452,2]
[378606102,1754923853144,-1881.45,0.00019452,2]
[378606103,1754923853154,-460.0,0.00019452,2]
[378606104,1754923853163,-1180.77,0.00019452,2]
[378606105,1754923853173,-460.0,0.00019452,2]
[378606106,1754923853182,-460.0,0.00019452,2]
[378606107,1754923853192,-460.0,0.00019452,2]
[378606108,1754923853202,-460.0,0.00019452,2]
[378606109,1754923853212,-460.0,0.00019452,2]
[378606110,1754923853222,-531.28,0.00019452,2]
[378606111,1754923853231,-460.0,0.00019452,2]
[378606112,1754923853241,-460.0,0.00019452,2]
[378606113,1754923853250,-460.0,0.00019452,2]
[378606114,1754923853260,-460.0,0.00019452,2]
[378606115,1754923853269,-849.84,0.00019452,2]
[378606116,1754923853279,-460.0,0.00019452,2]
[378606117,1754923853288,-3258.82,0.00019452,2]
[378606118,1754923853298,-460.0,0.00019452,2]
[378606119,1754923853307,-1595.23,0.00019452,2]
[378606120,1754923853316,-460.0,0.00019452,2]
[378606121,1754923853325,-475.79169589,0.00019452,2]
[378606122,1754923853334,-460.0,0.00019452,2]
[378606123,1754923853343,-501.36,0.00019452,2]
[378606124,1754923853353,-651.56,0.00019452,2]
[378606125,1754923853362,-460.0,0.00019452,2]
[378606126,1754923853371,-460.0,0.00019452,2]
[378606127,1754923853380,-460.0,0.00019452,2]
[378606128,1754923853390,-1333.36,0.00019452,2]
[378606129,1754923853399,-1121.34,0.00019452,2]
[378606130,1754923853409,-460.0,0.00019452,2]
[378606131,1754923853418,-534.11,0.00019452,2]
[378606132,1754923853427,-1283.75,0.00019452,2]
[378606133,1754923853437,-730.1,0.00019452,2]
[378606134,1754923853447,-799.12,0.00019452,2]
[378606135,1754923853456,-460.0,0.00019452,2]
[378606136,1754923853468,-460.0,0.00019452,2]
[378606137,1754923853478,-3645.41,0.00019452,2]
[378606138,1754923853488,-460.0,0.00019452,2]
[378606139,1754923853497,-460.0,0.00019452,2]
[378606140,1754923853507,-460.0,0.00019452,2]
[378606141,1754923853517,-460.0,0.00019452,2]
[378606142,1754923853526,-460.0,0.00019452,2]
[378606143,1754923853535,-4277.06,0.00019452,2]
[378606144,1754923853545,-460.0,0.00019452,2]
[378606145,1754923853555,-460.0,0.00019452,2]
[378606146,1754923853564,-460.0,0.00019452,2]
[378606147,1754923853574,-460.0,0.00019452,2]
[378606148,1754923853584,-460.0,0.00019452,2]
[378606149,1754923853593,-460.0,0.00019452,2]
[378606150,1754923853604,-770.94,0.00019452,2]
[378606151,1754923853613,-2130.7,0.00019452,2]
[378606152,1754923853623,-460.0,0.00019452,2]
[378606153,1754923853632,-460.0,0.00019452,2]
[378606154,1754923853642,-1122.82,0.00019452,2]
[378606155,1754923853652,-460.0,0.00019452,2]
[378606156,1754923853664,-796.94,0.00019452,2]
[378606157,1754923853673,-758.17,0.00019452,2]
[378606158,1754923853683,-460.0,0.00019452,2]
[378606159,1754923853694,-460.0,0.00019452,2]
[378606160,1754923853703,-514.41,0.00019452,2]
[378606161,1754923853713,-460.0,0.00019452,2]
[378606162,1754923853723,-471.98,0.00019452,2]
[378606163,1754923853734,-460.0,0.00019452,2]
[378606164,1754923853743,-460.0,0.00019452,2]
[378606165,1754923853752,-649.5,0.00019452,2]
[378606166,1754923853762,-460.0,0.00019452,2]
[378606167,1754923853772,-661.25,0.00019452,2]
[378606168,1754923853781,-1189.72,0.00019452,2]
[378606169,1754923853791,-460.0,0.00019452,2]
[378606170,1754923853801,-460.0,0.00019452,2]
[378606171,1754923853811,-460.0,0.00019452,2]
[378606172,1754923853820,-460.0,0.00019452,2]
[378606173,1754923853830,-3401.03,0.00019452,2]
[378606174,1754923853839,-2489.73,0.00019452,2]
[378606175,1754923853849,-998.32,0.00019452,2]
[378606176,1754923853859,-460.0,0.00019452,2]
[378606177,1754923854032,-460.0,0.00019452,2]
[378606178,1754923854042,-460.0,0.00019452,2]
[378606179,1754923854052,-460.0,0.00019452,2]
[378606180,1754923854061,-935.4,0.00019452,2]
[378606181,1754923854071,-460.0,0.00019452,2]
[378606182,1754923854081,-460.0,0.00019452,2]
[378606183,1754923854091,-460.0,0.00019452,2]
[378606184,1754923854100,-460.0,0.00019452,2]
[378606185,1754923854110,-460.0,0.00019452,2]
[378606186,1754923854120,-460.0,0.00019452,2]
[378606187,1754923854131,-676.19,0.00019452,2]
[378606188,1754923854140,-460.0,0.00019452,2]
[378606189,1754923854150,-460.0,0.00019452,2]
[378606190,1754923854159,-460.0,0.00019452,2]
[378606191,1754923854168,-918.5,0.00019452,2]
[378606192,1754923854178,-460.0,0.00019452,2]
[378606193,1754923854188,-900.77,0.00019452,2]
[378606194,1754923854197,-460.0,0.00019452,2]
[378606195,1754923854207,-944.81,0.00019452,2]
[378606196,1754923854218,-460.0,0.00019452,2]
[378606197,1754923854227,-460.0,0.00019452,2]
[378606198,1754923854236,-460.0,0.00019452,2]
[378606199,1754923854245,-460.0,0.00019452,2]
[378606200,1754923854255,-460.0,0.00019452,2]
[378606201,1754923854264,-460.0,0.00019452,2]
[378606202,1754923854274,-1175.79,0.00019452,2]
[378606203,1754923854283,-460.0,0.00019452,2]
[378606204,1754923854293,-460.0,0.00019452,2]
[378606205,1754923854302,-2016.64646436,0.00019452,2]
[378606206,1754923854312,-500.0,0.00019473,2]
[378606207,1754923854322,-500.0,0.00019473,2]
[378606208,1754923854331,-151.0,0.000195,2]
[378606209,1754923854341,-800.0,0.00019504,2]
[378606210,1754923854350,-12671.21867243,0.00019545,2]
[378606211,1754923854360,-160.0,0.00019545,2]
[378606212,1754923854370,-160.0,0.00019545,2]
[378606213,1754923854379,-231.9940742,0.00019547,2]
[378606214,1754923854389,-461.69158338,0.00019547,2]
[378606215,1754923854399,-215.4905783,0.00019547,2]
[378606216,1754923854409,-160.0,0.00019547,2]
[378606217,1754923854418,-843.18994796,0.00019547,2]
[378606218,1754923854427,-417.15472785,0.00019547,2]
[378606219,1754923854437,-160.0,0.00019547,2]
[378606220,1754923854447,-216.68257536,0.00019547,2]
[378606221,1754923854456,-160.0,0.00019547,2]
[378606222,1754923854467,-160.0,0.00019547,2]
[378606223,1754923854476,-160.0,0.00019547,2]
[378606224,1754923854486,-527.9539256,0.00019547,2]
[378606225,1754923854495,-160.0,0.00019547,2]
[378606226,1754923854506,-151.0,0.000196,2]
[378606227,1754923854516,-151.0,0.000196,2]
[378606228,1754923854525,-800.0,0.00019603,2]
[378606229,1754923854535,-7292.95870878,0.00019626,2]
[378606230,1754923854545,-800.0,0.00019641,2]
[378606231,1754923854554,-184.37172481,0.00019664,2]
[378606232,1754923854564,-800.0,0.00019681,2]
[378606233,1754923854573,-500.0,0.00019686,2]
[378606234,1754923854582,-1000.0,0.00019721,2]
[378606235,1754923854592,-1000.0,0.00019721,2]
[378606236,1754923854602,-1000.0,0.00019721,2]
[378606237,1754923854612,-500.0,0.00019721,2]
[378606238,1754923854622,-500.0,0.00019721,2]
[378606239,1754923854631,-500.0,0.00019721,2]
[378606240,1754923854642,-500.0,0.00019721,2]
[378606241,1754923854652,-500.0,0.00019721,2]
[378606242,1754923854665,-505.25769152,0.00019721,2]
[378606243,1754923854675,-500.0,0.00019721,2]
[378606244,1754923854685,-1000.0,0.00019721,2]
[378606245,1754923854696,-1000.0,0.00019721,2]
[378606246,1754923854707,-1035.9525052,0.00019721,2]
[378606247,1754923854719,-978.50876385,0.00019721,2]
[378606248,1754923854730,-400.0,0.00019721,2]
[378606249,1754923854739,-1000.0,0.00019721,2]
[378606250,1754923854749,-1000.0,0.00019721,2]
[378606251,1754923854759,-504.04565905,0.00019721,2]
[378606252,1754923854769,-1000.0,0.00019721,2]
[378606253,1754923854779,-1000.0,0.00019721,2]
[378606254,1754923854789,-1000.0,0.00019721,2]
[378606255,1754923854799,-1000.0,0.00019721,2]
[378606256,1754923854808,-1000.0,0.00019721,2]
[378606257,1754923854818,-509.88242739,0.00019721,2]
[378606258,1754923854828,-1000.0,0.00019721,2]
[378606259,1754923854838,-1000.0,0.00019721,2]
[378606260,1754923854847,-1000.0,0.00019721,2]
[378606261,1754923854857,-152.47978686,0.00019721,2]
[378606262,1754923854866,-165.91152342,0.00019721,2]
[378606263,1754923854876,-1000.0,0.00019721,2]
[378606264,1754923854887,-500.0,0.00019721,2]
[378606265,1754923854897,-1000.0,0.00019721,2]
[378606266,1754923854907,-1000.0,0.00019721,2]
[378606267,1754923854916,-11591.4539107,0.00019726,2]
[378606268,1754923854926,-228.35352861,0.00019726,2]
[378606269,1754923854935,-313.09999883,0.00019726,2]
[378606270,1754923854945,-198.0,0.00019726,2]
[378606271,1754923854954,-151.0,0.00019726,2]
[378606272,1754923854967,-151.0,0.00019726,2]
[378606273,1754923854976,-198.0,0.00019726,2]
[378606274,1754923854986,-500.0,0.00019726,2]
[378606275,1754923854996,-588.94623004,0.00019726,2]
[378606276,1754923855006,-500.0,0.00019726,2]
[378606277,1754923855016,-281.5763041,0.00019726,2]
[378606278,1754923855025,-151.0,0.00019726,2]
[378606279,1754923855035,-151.0,0.00019726,2]
[378606280,1754923855044,-500.0,0.00019726,2]
[378606281,1754923855054,-151.0,0.00019726,2]
[378606282,1754923855064,-500.0,0.00019726,2]
[378606283,1754923855073,-500.0,0.00019726,2]
[378606284,1754923855082,-500.0,0.00019726,2]
[378606285,1754923855093,-151.0,0.00019726,2]
[378606286,1754923855102,-151.0,0.00019726,2]
[378606287,1754923855111,-151.0,0.00019726,2]
[378606288,1754923855120,-151.0,0.00019726,2]
[378606289,1754923855130,-460.0,0.00019726,2]
[378606290,1754923855139,-460.0,0.00019726,2]
[378606291,1754923855149,-460.0,0.00019726,2]
[378606292,1754923855159,-460.0,0.00019726,2]
[378606293,1754923855168,-460.0,0.00019726,2]
[378606294,1754923855178,-460.0,0.00019726,2]
[378606295,1754923855187,-460.0,0.00019726,2]
[378606296,1754923855197,-460.0,0.00019726,2]
[378606297,1754923855206,-460.0,0.00019726,2]
[378606298,1754923855217,-462.42643874,0.00019726,2]
[378606299,1754923855227,-460.0,0.00019726,2]
[378606300,1754923855237,-460.0,0.00019726,2]
[378606301,1754923855246,-465.8290544,0.00019726,2]
[378606302,1754923855256,-460.0,0.00019726,2]
[378606303,1754923855265,-460.0,0.00019726,2]
[378606304,1754923855274,-460.0,0.00019726,2]
[378606305,1754923855284,-460.0,0.00019726,2]
[378606306,1754923855293,-460.0,0.00019726,2]
[378606307,1754923855302,-460.0,0.00019726,2]
[378606308,1754923855312,-460.0,0.00019726,2]
[378606309,1754923855321,-460.0,0.00019726,2]
[378606310,1754923855331,-1133.22,0.00019726,2]
[378606311,1754923855341,-460.0,0.00019726,2]
[378606312,1754923855350,-460.0,0.00019726,2]
[378606313,1754923855360,-460.0,0.00019726,2]
[378606314,1754923855370,-460.0,0.00019726,2]
[378606315,1754923855380,-460.0,0.00019726,2]
[378606316,1754923855389,-477.12,0.00019726,2]
[378606317,1754923855398,-460.0,0.00019726,2]
[378606318,1754923855408,-460.0,0.00019726,2]
[378606319,1754923855417,-221.76112064,0.00019726,2]
[378606320,1754923855427,-460.0,0.00019726,2]
[378606321,1754923855438,-460.0,0.00019726,2]
[378606322,1754923855447,-756.81,0.00019726,2]
[378606323,1754923855457,-762.44,0.00019726,2]
[378606324,1754923855468,-486.09453192,0.00019726,2]
[378606325,1754923855478,-460.0,0.00019726,2]
[378606326,1754923855488,-460.0,0.00019726,2]
[378606327,1754923855499,-460.0,0.00019726,2]
[378606328,1754923855509,-460.0,0.00019726,2]
[378606329,1754923855519,-460.0,0.00019726,2]
[378606330,1754923855528,-460.0,0.00019726,2]
[378606331,1754923855537,-460.0,0.00019726,2]
[378606332,1754923855547,-313.22695606,0.00019726,2]
[378606333,1754923855556,-460.0,0.00019726,2]
[378606334,1754923855566,-460.0,0.00019726,2]
[378606335,1754923855575,-460.0,0.00019726,2]
[378606336,1754923855585,-460.0,0.00019726,2]
[378606337,1754923855594,-460.0,0.00019726,2]
[378606338,1754923855603,-460.0,0.00019726,2]
[378606339,1754923855613,-460.0,0.00019726,2]
[378606340,1754923855622,-1136.94,0.00019726,2]
[378606341,1754923855631,-460.0,0.00019726,2]
[378606342,1754923855642,-460.0,0.00019726,2]
[378606343,1754923855654,-460.0,0.00019726,2]
[378606344,1754923855664,-460.0,0.00019726,2]
[378606345,1754923855673,-460.0,0.00019726,2]
[378606346,1754923855683,-554.51,0.00019726,2]
[378606347,1754923855695,-460.0,0.00019726,2]
[378606348,1754923855704,-460.0,0.00019726,2]
[378606349,1754923855714,-908.02,0.00019726,2]
[378606350,1754923855724,-185.87663612,0.00019726,2]
[378606351,1754923855734,-460.0,0.00019726,2]
[378606352,1754923855744,-460.0,0.00019726,2]
[378606353,1754923855753,-629.09,0.00019726,2]
[378606354,1754923855763,-308.02236105,0.00019726,2]
[378606355,1754923855773,-460.0,0.00019726,2]
[378606356,1754923855783,-460.0,0.00019726,2]
[378606357,1754923855793,-631.5,0.00019726,2]
[378606358,1754923855802,-617.15,0.00019726,2]
[378606359,1754923855812,-460.0,0.00019726,2]